Cogmind - Beta 16 *** ADVENTURER MODE // 2026.02.01 @ 18:42:29 Player: Armok Result: Self-destructed Performance ------------- Evolutions (7) 3500 Regions Visited (20) 4000 Robots Destroyed (148) 740 Value Destroyed (5507) 5507 Prototype IDs (78) 1560 Alien Tech Used (2) 400 Bonus (1463) 1463 TOTAL SCORE: 17170 Bonus ------- Follower Combat Kills 563 Aligned with FarCom 300 Met Data Miner 300 Met Zhirov 300 Cogmind --------- Core Integrity 895/1300 Matter 300/300 Energy 100/100 System Corruption 4% Temperature Cool (12) Movement Flying (35) Location -3/Research Parts ------- > --- POWER (1) -------- (None) > --- PROPULSION (4) --- Improved VTOL Module > --- UTILITY (14) ----- Advanced Signal Interpreter Advanced Melee Analysis Suite Improved Target Analyzer Advanced Target Analyzer Improved Armor Integrity Analyzer Advanced Hacking Suite Advanced Hacking Suite Advanced Corruption Screen > --- WEAPON (2) ------- Katana > --- INVENTORY (5) ---- Particle Reactor Particle Reactor Cesium-ion Thruster Advanced Phase Shifter Improved Remote Datajack Peak State ------------ > --- POWER ------------ Particle Reactor > --- PROPULSION ------- Improved VTOL Module Improved VTOL Module Impulse Thruster Cooled Impulse Thruster > --- UTILITY ---------- Advanced Weight Redist. System Advanced Signal Interpreter Advanced Melee Analysis Suite Improved Target Analyzer Advanced Target Analyzer Improved Armor Integrity Analyzer Nanoactuators Advanced Transmission Jammer Improved Reaction Control System Experimental Propulsion Shielding Advanced Hacking Suite Advanced Hacking Suite Advanced Corruption Screen Improved System Restoration Module > --- WEAPON ----------- Katana > --- INVENTORY -------- Light Particle Reactor Cesium-ion Thruster Improved VTOL Module Advanced Phase Shifter Improved Remote Datajack [Rating: 120] Favorites ----------- Power Improved Deuterium Engine Engine Improved Deuterium Engine Power Core Enhanced Fission Core Reactor Antimatter Reactor Propulsion Wheel Wheel Wheel Flight Unit Improved VTOL Module Utility Improved Targeting Computer Device Advanced Weight Redist. System Storage Huge Storage Unit Processor Improved Targeting Computer Hackware System Shield Protection Improved Propulsion Shielding Weapon Heavy Assault Cannon Energy Gun Particle Gun Energy Cannon Cooled Phase Cannon Ballistic Gun Enhanced Autogun Ballistic Cannon Heavy Assault Cannon Launcher Mini Grenade Launcher Special Weapon Mining Laser Impact Weapon Hammer Slashing Weapon Power Sword Special Melee Weapon Advanced Datajack Build | -11 -10 -10 -10 -9 -8 -7 -6 -6 -6 -6 -5 -5 -5 -5 -5 -4 -4 -4 -4 -3 ------- Run | Yrd Mat Min Exi Min Mat Fac Fac Low Low Dat Pro Fac Upp Upp Zhi Pro Fac Was Fac Res Slots Evolved 14 | . . . . . 4 2 2 . . . . 2 . . . . 2 . . 2 Power . | . . . . . . . . . . . . . . . . . . . . . Propulsion 2 | . . . . . 1 1 . . . . . . . . . . . . . . Utility 12 | . . . . . 3 1 2 . . . . 2 . . . . 2 . . 2 Weapon . | . . . . . . . . . . . . . . . . . . . . . Parts Attached 133 | 10 9 3 1 5 18 13 19 2 . . 3 9 2 2 6 1 8 6 1 15 Power 20 | 1 2 1 . . 2 2 1 1 . . . 1 . . 2 . 1 2 . 4 Engine 8 | 1 2 1 . . 1 2 1 . . . . . . . . . . . . . Core 5 | . . . . . 1 . . 1 . . . 1 . . 1 . . . . 1 Reactor 7 | . . . . . . . . . . . . . . . 1 . 1 2 . 3 Propulsion 22 | 2 2 1 . 2 3 5 4 . . . . . . . . . 1 1 . 1 Treads . | . . . . . . . . . . . . . . . . . . . . . Leg . | . . . . . . . . . . . . . . . . . . . . . Wheel 14 | 2 2 1 . 2 3 4 . . . . . . . . . . . . . . Hover . | . . . . . . . . . . . . . . . . . . . . . Flight 8 | . . . . . . 1 4 . . . . . . . . . 1 1 . 1 Utility 62 | 2 2 . . . 9 4 11 1 . . 3 7 2 2 3 1 6 . . 9 Device 22 | 1 . . . . 1 1 4 1 . . 2 3 . 2 1 . . . . 6 Storage 2 | 1 1 . . . . . . . . . . . . . . . . . . . Processor 19 | . 1 . . . 4 2 1 . . . 1 2 1 . . . 4 . . 3 Hackware 8 | . . . . . . . 3 . . . . 2 . . 1 . 2 . . . Protection 11 | . . . . . 4 1 3 . . . . . 1 . 1 1 . . . . Artifact . | . . . . . . . . . . . . . . . . . . . . . Weapon 29 | 5 3 1 1 3 4 2 3 . . . . 1 . . 1 . . 3 1 1 Energy Gun 7 | 2 2 1 . . . . . . . . . . . . . . . 1 1 . Energy Cannon 1 | . . . . . . . . . . . . . . . . . . 1 . . Ballistic Gun 4 | 1 1 . . 1 1 . . . . . . . . . . . . . . . Ballistic Cannon 5 | . . . . 1 3 1 . . . . . . . . . . . . . . Launcher 4 | . . . . . . 1 1 . . . . 1 . . . . . . . 1 Special Weapon 3 | 2 . . . . . . . . . . . . . . . . . 1 . . Impact Weapon 1 | . . . . 1 . . . . . . . . . . . . . . . . Slashing Weapon 2 | . . . . . . . 2 . . . . . . . . . . . . . Piercing Weapon . | . . . . . . . . . . . . . . . . . . . . . Special Melee Weapon 2 | . . . 1 . . . . . . . . . . . 1 . . . . . Unidentified Prototypes 14 | . . . . . 1 2 . . . . . 2 . . 4 . . 2 1 2 Parts Lost 38 | . 2 2 . . 3 3 . 1 1 . 3 2 1 3 . 1 3 . . 13 Power 3 | . . 1 . . . 1 . . . . . . . . . . . . . 1 Propulsion 11 | . . 1 . . 3 2 . . 1 . . . . . . . . . . 4 Utility 20 | . . . . . . . . 1 . . 3 1 1 3 . . 3 . . 8 Weapon 4 | . 2 . . . . . . . . . . 1 . . . 1 . . . . Highest Loss Streak 6 | . 2 2 . . 1 1 . 1 1 . 3 1 1 2 . 1 3 . . 6 To Critical Strikes . | . . . . . . . . . . . . . . . . . . . . . Average Backups 15 | 5 11 16 18 21 22 23 8 8 8 8 7 7 7 8 7 7 5 5 4 4 Power 2 | 1 2 3 3 4 6 3 1 1 1 1 1 1 1 1 1 2 1 1 1 1 Propulsion 2 | 1 2 3 3 2 1 4 1 1 1 1 1 1 1 1 1 1 1 1 1 1 Utility 6 | 1 3 5 7 7 7 11 4 5 5 5 4 4 4 4 3 3 1 . 1 1 Weapon 3 | 1 1 3 4 5 6 4 1 1 1 1 1 1 1 1 1 . . . . . Tool/Special . | . . . . . . . . . . . . . . . . . . . . . Unused Backups 73 | 3 3 3 . 3 26 11 10 . . . . 2 1 1 1 1 . 2 1 5 Power 27 | 1 1 2 . . 10 3 3 . . . . 1 . . 1 1 . 1 . 3 Propulsion 4 | 1 . . . 2 . 1 . . . . . . . . . . . . . . Utility 24 | 1 2 . . 1 7 3 5 . . . . 1 1 1 . . . 1 . 1 Weapon 16 | . . 1 . . 9 4 1 . . . . . . . . . . . 1 . Tool/Special 2 | . . . . . . . 1 . . . . . . . . . . . . 1 Average Slot Usage (%) 95 | . 99 96 100 97 93 91 98 99 99 100 93 95 89 90 92 96 98 96 94 90 Engine 5 | . 14 12 14 14 4 7 6 4 . . . . . . . . . . . . Core 1 | . . . . . 4 . . 1 6 6 6 5 5 5 4 5 4 . . . Wheel 16 | . 28 25 28 28 26 29 . . . . . . . . . . . . . . Flight 9 | . . . . . . . 25 26 25 26 26 23 23 23 23 23 21 21 21 18 Device 7 | . 4 . . . . 5 14 19 20 20 15 11 11 14 11 11 10 10 10 16 Storage 7 | . 14 14 14 14 9 7 6 6 6 6 6 5 5 5 5 5 3 . . . Processor 17 | . 9 14 14 14 26 24 9 . . . . 10 13 17 17 17 17 26 26 23 Hackware 6 | . . . . . . . 12 13 13 13 13 22 11 11 11 11 20 21 21 15 Protection 5 | . . . . . 8 7 6 13 13 13 10 5 9 4 8 11 8 5 5 3 Energy Gun 2 | . 15 28 16 . . . . . . . . . . . . . . 1 3 . Ballistic Gun 1 | . 2 . . 5 4 . . . . . . . . . . . . . . . Ballistic Cannon 3 | . . . . 5 8 7 . . . . . . . . . . . . . . Launcher 1 | . . . . . . . 5 6 6 6 6 1 . . . . . . . 2 Slashing Weapon 2 | . . . . . . . 5 6 6 6 6 5 5 5 5 5 5 3 1 3 Peak Build Rating 120 | 10 11 12 12 15 33 39 56 56 55 55 60 72 72 76 86 86 101 105 102 120 Average Rating 43 | 6 9 11 11 13 29 36 51 55 54 55 52 68 66 71 77 82 94 98 101 107 On Entrance 51 | . 9 11 12 12 15 32 38 56 55 55 55 56 64 72 71 80 86 101 97 102 Avg Prop Armor Cover (%) . | . . . . . . . . . . . . . . . . . . . . . Naked Turns . | . . . . . . . . . . . . . . . . . . . . . Heaviest Build 127 | 14 91 93 93 96 110 127 115 31 30 30 30 26 28 28 29 30 29 30 31 31 Greatest Support 48 | 20 20 20 20 20 30 48 48 31 31 31 31 31 31 31 31 31 31 32 32 34 Greatest Overweight (x) 9 | . 4 9 4 4 5 3 2 . . . . . . . . . . . . . Average Overweight (x) 1 | . 3 4 4 4 3 2 . . . . . . . . . . . . . . Largest Inventory Capacity 25 | 8 25 25 25 25 25 25 25 8 8 8 8 8 8 8 8 8 8 5 5 5 Average Capacity 17 | 7 22 25 25 25 25 25 8 8 8 8 8 8 8 8 8 8 7 5 5 5 Most Carried 25 | 8 17 20 19 25 25 25 25 8 8 8 8 8 8 8 8 8 8 5 5 5 Average Carried 15 | 5 11 16 18 21 23 24 8 7 7 8 7 7 7 7 7 7 5 4 4 4 Final Capacity 25 | 8 25 25 25 25 25 25 8 8 8 8 8 8 8 8 8 8 5 5 5 5 Final Carried 25 | 7 15 18 19 20 25 25 8 8 8 8 7 8 8 8 8 8 5 5 5 5 Class Distribution -------------------- 44% | Mutant 33% | Hacker-Sprinter 14% | Scavenger-Mutant 7% | Wizard-Sprinter Dominant Class ---------------- Mutant | -10/Materials Mutant | -10/Mines Mutant | -10/Exiles Mutant | -9/Mines Mutant | -8/Materials Scavenger-Mutant | -7/Factory Hacker-Sprinter | -6/Factory Hacker-Sprinter | -6/Lower Caves Hacker-Sprinter | -6/Lower Caves Hacker-Sprinter | -6/Data Miner Hacker-Sprinter | -5/Proximity Caves Hacker-Sprinter | -5/Factory Hacker-Sprinter | -5/Upper Caves Hacker-Sprinter | -5/Upper Caves Hacker-Sprinter | -5/Zhirov Hacker-Sprinter | -4/Proximity Caves Wizard-Sprinter | -4/Factory Wizard-Sprinter | -4/Waste Wizard-Sprinter | -4/Factory Wizard-Sprinter | -3/Research Resources | -11 -10 -10 -10 -9 -8 -7 -6 -6 -6 -6 -5 -5 -5 -5 -5 -4 -4 -4 -4 -3 ----------- Run | Yrd Mat Min Exi Min Mat Fac Fac Low Low Dat Pro Fac Upp Upp Zhi Pro Fac Was Fac Res Matter Collected 3548 | 320 108 10 . 90 935 794 322 89 71 . 30 120 10 50 36 139 40 82 70 232 Remotely . | . . . . . . . . . . . . . . . . . . . . . Salvage Created 4815 | 154 89 212 . 274 923 846 233 77 128 . 86 300 105 264 36 220 120 . 22 726 Parts 256 | 13 6 12 . 7 51 45 12 2 7 . 2 16 . 22 2 10 8 . 1 40 Haulers Intercepted . | . . . . . . . . . . . . . . . . . . . . . Recyclers Shooed 1 | . . . . . . 1 . . . . . . . . . . . . . . Parts Field Recycled . | . . . . . . . . . . . . . . . . . . . . . Retrieved Matter . | . . . . . . . . . . . . . . . . . . . . . Parts Self-Destructed 30 | . . . . . . . . 1 . . 3 . . 18 1 7 . . . . Prevented 1 | . . . . . . . . . . . . . 1 . . . . . . . Parts Restored . | . . . . . . . . . . . . . . . . . . . . . Kills | -11 -10 -10 -10 -9 -8 -7 -6 -6 -6 -6 -5 -5 -5 -5 -5 -4 -4 -4 -4 -3 ------- Run | Yrd Mat Min Exi Min Mat Fac Fac Low Low Dat Pro Fac Upp Upp Zhi Pro Fac Was Fac Res Combat Hostiles Destroyed 121 | . 7 5 . 6 26 29 5 3 4 . 2 4 2 9 . 2 5 . 1 11 Melee 49 | . . . . 4 . . 5 1 4 . 2 4 2 9 . 2 5 . . 11 Guns 17 | . 5 5 . 2 4 . . . . . . . . . . . . . 1 . Cannons 53 | . 2 . . . 22 29 . . . . . . . . . . . . . . AOE 2 | . . . . . . . . 2 . . . . . . . . . . . . Classes Destroyed 15 | 3 3 1 . 2 3 2 . . . . . . . . . . . . . 1 Worker 3 | 1 . . . 1 . 1 . . . . . . . . . . . . . . Builder 1 | . . . . 1 . . . . . . . . . . . . . . . . Tunneler 5 | 5 . . . . . . . . . . . . . . . . . . . . Recycler 5 | 1 . . . 2 . 2 . . . . . . . . . . . . . . Operator 3 | . . . . . . 1 . . . . . 1 . . . . . . . 1 Watcher 11 | . 2 . . . 5 3 . . . . . 1 . . . . . . . . Swarmer 39 | . 5 . . 2 3 11 1 2 . . 1 . . 8 . . 5 . 1 . Cutter 2 | . . . . . . . . . . . . . . . . . . . . 2 Grunt 39 | . 2 4 . 3 11 10 2 1 . . . 2 2 . . . . . . 2 Brawler 1 | . . . . . 1 . . . . . . . . . . . . . . . Duelist 1 | . . . . . 1 . . . . . . . . . . . . . . . Sentry 13 | . . 1 . . 9 2 . . . . . . . . . . . . . 1 Hunter 5 | . . . . . 1 . . . . . 1 1 . 1 . . . . . 1 Programmer 16 | . . . . . . 6 2 . . . . 1 . . . 2 . . . 5 Assembled 1 | . . . . 1 . . . . . . . . . . . . . . . . Wasp 3 | . . . . . . . . . 3 . . . . . . . . . . . Thug 1 | . . . . . . . . . 1 . . . . . . . . . . . Best Kill Streak 8 | 2 3 2 . 3 5 8 2 2 2 . 1 3 2 4 . 1 5 . 1 6 Combat Bots Only 8 | . 3 2 . 3 4 8 2 2 2 . 1 3 2 4 . 1 5 . 1 5 Max Kills in Single Turn 2 | 1 1 1 . 1 1 2 1 1 1 . 1 1 1 1 . 1 1 . 1 1 Gunslinging . | . . . . . . . . . . . . . . . . . . . . . Exploded 1 | . . . . . . . . 1 . . . . . . . . . . . . Melee 1 | . . . . 1 . . 1 1 1 . 1 1 1 1 . 1 1 . . 1 Uniques/NPCs Destroyed . | . . . . . . . . . . . . . . . . . . . . . Combat | -11 -10 -10 -10 -9 -8 -7 -6 -6 -6 -6 -5 -5 -5 -5 -5 -4 -4 -4 -4 -3 -------- Run | Yrd Mat Min Exi Min Mat Fac Fac Low Low Dat Pro Fac Upp Upp Zhi Pro Fac Was Fac Res Hostile Shots Fired 713 | . 41 31 . 16 93 117 38 37 31 . 25 22 19 36 . 27 31 . 5 144 Missed 291 | . 9 7 . 5 25 45 28 19 16 . 15 7 10 13 . 18 11 . 4 59 Hits 422 | . 32 24 . 11 68 72 10 18 15 . 10 15 9 23 . 9 20 . 1 85 Melee 5 | . . . . . 2 . . . . . . . . . . . . . . 3 Projectile 417 | . 32 24 . 11 66 72 10 18 15 . 10 15 9 23 . 9 20 . 1 82 Critical Strikes 26 | . 1 2 . 2 4 4 . 2 . . 1 . . 2 . 1 1 . . 6 Actively Blocked 2 | . . . . . . . . . . . . . . . . . 1 . . 1 Part Disruptions 1 | . . . . . 1 . . . . . . . . . . . . . . . Damage Taken 5506 | . 204 256 . 121 839 687 126 285 226 . 123 217 138 272 . 148 409 17 10 1428 Core 1129 | . 41 35 . 50 113 132 36 . 49 . 29 39 28 73 . . 89 . 10 405 Absorbed by Shields 13 | . . . . . . . . . . . . 13 . . . . . . . . Redirected to Shielding 332 | . . . . . . . 33 28 30 . . 9 9 25 . 14 81 4 . 99 Ignored by Resistances 1650 | . 67 76 . 37 237 278 37 77 64 . 34 63 38 82 . 40 112 5 3 400 Regen/Repaired (Parts) 626 | . . . . . 393 . 56 . . . . . . . . . 126 51 . . Core Remaining (%) 80 | 100 . . . 49 79 81 . . . . 86 . . . . 80 . . 91 . Volleys Fired 256 | 33 19 16 . 5 84 85 . 5 . . . . . . . . . 1 6 2 Largest 2 | 2 2 2 . 1 2 1 . 1 . . . . . . . . . 1 1 1 Hottest 200 | 120 200 130 . 23 65 50 . 30 . . . . . . . . . 7 88 88 Shots Fired 327 | 40 31 32 . 5 119 85 . 5 . . . . . . . . . 1 6 3 Gun 147 | 33 19 32 . 5 50 . . . . . . . . . . . . . 6 2 Cannon 154 | . . . . . 69 85 . . . . . . . . . . . . . . Launcher 6 | . . . . . . . . 5 . . . . . . . . . . . 1 Special 20 | 7 12 . . . . . . . . . . . . . . . . 1 . . Kinetic 247 | 33 5 . . 5 119 85 . . . . . . . . . . . . . . Thermal 73 | 7 26 32 . . . . . . . . . . . . . . . . 6 2 Explosive 6 | . . . . . . . . 5 . . . . . . . . . . . 1 Electromagnetic . | . . . . . . . . . . . . . . . . . . . . . Robot Hit Streak 29 | 8 8 11 . 15 28 29 . 1 . . . . . . . . . 2 5 2 Robot Miss Streak 4 | 4 1 1 . 1 4 1 . . . . . . . . . . . . 1 . Penetration Max 1 | . . . . . 1 1 . . . . . . . . . . . . . . Secondary Targets 2 | . 1 1 . . . . . . . . . . . . . . . . . . Max Gunslinging Chain 1 | . 1 1 . . . . . . . . . . . . . . . . . . Shots Hit Robots 434 | 27 24 28 4 16 104 76 12 8 14 . 4 8 9 18 4 16 10 1 4 47 Core Hits 171 | 12 11 9 . 9 39 28 5 5 4 . 2 6 4 9 1 4 5 . 1 17 Critical Kills 5 | . . . . 3 2 . . . . . . . . . . . . . . . Critical Parts Destroyed 1 | . . . . 1 . . . . . . . . . . . . . . . . Critical Strikes 43 | . . 1 . 4 12 11 . 2 1 . . 1 1 1 . 1 . . . 8 Burn 1 | . . 1 . . . . . . . . . . . . . . . . . . Destroy 2 | . . . . . 2 . . . . . . . . . . . . . . . Blast 21 | . . . . . 10 11 . . . . . . . . . . . . . . Smash 4 | . . . . 4 . . . . . . . . . . . . . . . . Sever 15 | . . . . . . . . 2 1 . . 1 1 1 . 1 . . . 8 Melee Attacks 169 | . . . 4 13 . . 14 7 14 . 4 8 9 20 4 16 11 . . 45 Impact 12 | . . . . 12 . . . . . . . . . . . . . . . . Slashing 146 | . . . . . . . 14 7 14 . 4 8 9 20 1 13 11 . . 45 Piercing . | . . . . . . . . . . . . . . . . . . . . . Sneak Attacks 19 | . . . 4 5 . . . . . . . 2 . 1 3 1 . . . 3 Combat Hostiles 5 | . . . . . . . . . . . . 1 . 1 . . . . . 3 Follow-up Attacks . | . . . . . . . . . . . . . . . . . . . . . Damage Inflicted 16370 | 232 399 431 . 506 3744 4362 420 561 623 . 194 560 422 886 120 660 368 . 114 1768 Guns 1723 | 208 183 431 . 54 679 . . . . . . . . . . . . . 114 54 Cannons 7221 | . . . . . 2964 4257 . . . . . . . . . . . . . . Explosions 431 | . . . . . 101 87 . 243 . . . . . . . . . . . . Melee 6737 | . . . . 452 . . 420 318 623 . 194 560 422 886 120 660 368 . . 1714 Ramming 18 | . . . . . . 18 . . . . . . . . . . . . . . Kinetic 8197 | 208 35 . . 54 3643 4257 . . . . . . . . . . . . . . Thermal 1074 | 24 364 431 . . . 87 . . . . . . . . . . . . 114 54 Explosive 243 | . . . . . . . . 243 . . . . . . . . . . . . Electromagnetic 101 | . . . . . 101 . . . . . . . . . . . . . . . Impact 452 | . . . . 452 . . . . . . . . . . . . . . . . Slashing 6285 | . . . . . . . 420 318 623 . 194 560 422 886 120 660 368 . . 1714 Piercing . | . . . . . . . . . . . . . . . . . . . . . Highest Corruption 5 | . 1 1 1 1 . 1 1 1 1 1 1 . . . . 1 . . . 5 Average Corruption 1 | . 1 1 1 1 . 1 1 1 1 1 1 . . . . 1 . . . 4 Corruption Purged 1 | . . . . . . . . . . . . . . . . . . . . 1 Corruption Blocked 4 | . . . . . . . . . . . . . . . . . . . . 4 Effects 54 | . . 1 7 6 . 10 15 2 2 . 2 . . . . 2 . . . 7 Message Errors 17 | . . . 1 1 . 4 4 1 1 . 2 . . . . 1 . . . 2 Matter Fused 7 | . . . . 1 . . 3 1 . . . . . . . . . . . 2 Heat Flow Errors 8 | . . . 3 1 . . 3 . 1 . . . . . . . . . . . Energy Discharges 6 | . . . . 1 . 2 1 . . . . . . . . 1 . . . 1 Parts Rejected 1 | . . . . 1 . . . . . . . . . . . . . . . . Parts Fused 1 | . . . . 1 . . . . . . . . . . . . . . . . Data Loss (minor) 10 | . . 1 2 . . 3 3 . . . . . . . . . . . . 1 Data Loss (major) 1 | . . . . . . . 1 . . . . . . . . . . . . . Misfires 1 | . . . . . . . . . . . . . . . . . . . . 1 Alerts 2 | . . . 1 . . 1 . . . . . . . . . . . . . . Overload Shots . | . . . . . . . . . . . . . . . . . . . . . Overflow Damage 1346 | . . . . 70 184 471 38 6 74 . 27 . 41 85 . 173 21 . . 156 Projectiles 603 | . . . . . 184 419 . . . . . . . . . . . . . . Explosions 58 | . . . . . . 52 . 6 . . . . . . . . . . . . Melee 685 | . . . . 70 . . 38 . 74 . 27 . 41 85 . 173 21 . . 156 Knockbacks 48 | . . . . 1 20 27 . . . . . . . . . . . . . . Impact 2 | . . . . 1 . 1 . . . . . . . . . . . . . . Kinetic 42 | . . . . . 17 25 . . . . . . . . . . . . . . Secondary 4 | . . . . . 3 1 . . . . . . . . . . . . . . Self-Inflicted Damage 133 | . . . . . 14 61 . 30 . . . . . . . . . . . 28 Shots 4 | . . . . . 1 1 . 1 . . . . . . . . . . . 1 Rammed 1 | . . . . . . 1 . . . . . . . . . . . . . . Targets Rammed 1 | . . . . . . 1 . . . . . . . . . . . . . . Kicked . | . . . . . . . . . . . . . . . . . . . . . Crushed . | . . . . . . . . . . . . . . . . . . . . . Highest Temperature 510 | 80 409 510 281 235 271 30 234 19 120 . 20 . 9 . . . . . 78 196 Average Temperature 65 | 33 97 164 119 106 45 8 100 6 61 . 9 . 9 . . . . . 40 93 Received Heat Transfer 1659 | . 21 204 . 117 450 177 18 162 114 . 45 42 72 . . 9 18 . . 210 Effects 11 | . 1 8 2 . . . . . . . . . . . . . . . . . Shutdowns 2 | . 1 1 . . . . . . . . . . . . . . . . . . Energy Bleed 2 | . . 2 . . . . . . . . . . . . . . . . . . Interference 5 | . . 3 2 . . . . . . . . . . . . . . . . . Short Circuit 1 | . . 1 . . . . . . . . . . . . . . . . . . Damage (minor) 1 | . . 1 . . . . . . . . . . . . . . . . . . Siege Activations . | . . . . . . . . . . . . . . . . . . . . . Martial Activations . | . . . . . . . . . . . . . . . . . . . . . Shielding Activations . | . . . . . . . . . . . . . . . . . . . . . Robots Disrupted . | . . . . . . . . . . . . . . . . . . . . . Combat Hostiles . | . . . . . . . . . . . . . . . . . . . . . Robots Corrupted 2 | . . . . 2 . . . . . . . . . . . . . . . . Combat Hostiles . | . . . . . . . . . . . . . . . . . . . . . Parts Fried 3 | . . . . 2 1 . . . . . . . . . . . . . . . Impact Corruptions 4 | . . . . 4 . . . . . . . . . . . . . . . . Robots Melted . | . . . . . . . . . . . . . . . . . . . . . Combat Hostiles . | . . . . . . . . . . . . . . . . . . . . . Parts Melted 2 | . . 2 . . . . . . . . . . . . . . . . . . Heat Transferred 2252 | 50 820 1110 . . . 50 . . . . . . . . . . . . 148 74 Parts Sabotaged . | . . . . . . . . . . . . . . . . . . . . . Parts Stolen . | . . . . . . . . . . . . . . . . . . . . . Parts Stripped . | . . . . . . . . . . . . . . . . . . . . . Power Chain Reactions . | . . . . . . . . . . . . . . . . . . . . . Alert | -11 -10 -10 -10 -9 -8 -7 -6 -6 -6 -6 -5 -5 -5 -5 -5 -4 -4 -4 -4 -3 ------- Run | Yrd Mat Min Exi Min Mat Fac Fac Low Low Dat Pro Fac Upp Upp Zhi Pro Fac Was Fac Res Maximum Alert Level 1 | . . . . . . . . . . . . . . . . . . . 1 1 Low Security (%) 98 | 100 100 100 . 100 100 100 100 . . . . 100 . . . . 100 100 53 71 Level 1 1 | . . . . . . . . . . . . . . . . . . . 46 28 Level 2 . | . . . . . . . . . . . . . . . . . . . . . Level 3 . | . . . . . . . . . . . . . . . . . . . . . Level 4 . | . . . . . . . . . . . . . . . . . . . . . Level 5 . | . . . . . . . . . . . . . . . . . . . . . High Security . | . . . . . . . . . . . . . . . . . . . . . Max Security . | . . . . . . . . . . . . . . . . . . . . . Peak Influence 285 | 10 60 55 . 65 71 198 110 . . . . 152 . . . . 90 84 239 285 Initial 152 | . . . . . 9 . . . . . . 152 . . . . 2 11 . 103 Average 27 | 1 13 20 . 8 17 32 9 . . . . 27 . . . . 29 25 125 151 Influence Increases 5061 | 35 257 157 . 165 786 921 342 210 15 . 95 383 100 225 5 95 203 114 273 680 Destroy 0b10 Robot/C 2600 | . 140 120 . 120 520 580 100 60 . . 40 120 40 180 . 40 100 . 140 300 Destroy 0b10 Robot/NC 165 | 35 10 . . 20 25 35 . . . . . 10 . . 5 . . . 5 20 Destroy Leader 584 | . 24 20 . 10 160 156 20 . . . 10 32 . 30 . 10 10 . 22 80 Allied During Kill 119 | . . 2 . . . . . . . . . 7 . . . . . . 62 48 Successful Hack 299 | . 36 . . . 30 71 57 . . . . 23 . . . . 48 . 4 30 Disable Machine 72 | . . . . . 27 36 . . . . . 9 . . . . . . . . Destroy Structure 247 | . 2 . . . 9 28 . . . . . 2 . . . . . 114 40 52 Advance Influence 150 | . . . . . . . . . . . . 150 . . . . . . . . Partial Spotted 75 | . . . . . . . 15 . . . . 15 . . . . . . . 45 Lose Combat Pursuer 750 | . 45 15 . 15 15 15 150 150 15 . 45 15 60 15 . 45 45 . . 105 Influence Decreases 4878 | 35 257 157 . 135 816 921 339 53 145 30 90 383 55 145 135 90 167 155 44 726 Entered New Map 409 | . . . . . 21 . . 3 45 30 . 3 3 15 130 . 3 30 . 126 Time Decay 3842 | 35 256 152 . 125 765 850 339 40 90 . 60 330 42 100 5 90 124 105 24 310 Lost Part 326 | . 1 5 . . 30 30 . 10 10 . 30 10 10 30 . . 30 . . 130 Lost Ally 260 | . . . . 10 . . . . . . . 40 . . . . 10 20 20 160 Purge Threat 41 | . . . . . . 41 . . . . . . . . . . . . . . Squads Dispatched 50 | . 1 . . 1 2 13 7 . . . . 7 . . . . 3 . 1 15 Investigation 13 | . 1 . . . . 5 1 . . . . 3 . . . . . . . 3 Extermination 17 | . . . . . . 7 4 . . . . 3 . . . . 1 . . 2 Reinforcement 14 | . . . . . 2 1 2 . . . . . . . . . 2 . . 7 Assault 1 | . . . . 1 . . . . . . . . . . . . . . . . Garrison 5 | . . . . . . . . . . . . 1 . . . . . . 1 3 Intercept . | . . . . . . . . . . . . . . . . . . . . . Searches Triggered . | . . . . . . . . . . . . . . . . . . . . . Data Miner Redirects 1 | . . . . . . . . . . . . . . . . . . . . 1 Construction Impeded 2 | . . . . . 1 . . . . . . . . . . . . . . 1 Haulers Reinforced 1 | . . . . . . . . . . . . . . . . . . . . 1 Active Scanning Responses . | . . . . . . . . . . . . . . . . . . . . . Cargo Convoy Interrupts . | . . . . . . . . . . . . . . . . . . . . . Stealth | -11 -10 -10 -10 -9 -8 -7 -6 -6 -6 -6 -5 -5 -5 -5 -5 -4 -4 -4 -4 -3 --------- Run | Yrd Mat Min Exi Min Mat Fac Fac Low Low Dat Pro Fac Upp Upp Zhi Pro Fac Was Fac Res Distress Signals 13 | . 2 . . . 2 3 1 . . . . 2 . . . . . . 2 1 Communications Jammed 1 | . . . . . . . . . . . . . . . . . . . . 1 Distress Signals 1 | . . . . . . . . . . . . . . . . . . . . 1 Times Spotted 236 | . 15 7 . 8 38 35 16 10 7 . 11 14 7 10 . 10 10 6 8 24 Peak Tracking Total 13 | . 4 2 . 3 4 3 5 13 4 . 4 8 5 4 . 5 5 3 7 10 Tactical Retreats 27 | . 3 1 . 1 1 1 4 3 2 . 2 1 1 1 . 1 3 . . 2 ECM-based Alert Blocks 6 | . . . . . . . . 1 2 . 3 . . . . . . . . . Traps | -11 -10 -10 -10 -9 -8 -7 -6 -6 -6 -6 -5 -5 -5 -5 -5 -4 -4 -4 -4 -3 ------- Run | Yrd Mat Min Exi Min Mat Fac Fac Low Low Dat Pro Fac Upp Upp Zhi Pro Fac Was Fac Res Traps Triggered 18 | . 3 . . . 3 3 4 . . . . 1 . . . . 1 . . 3 Indirectly . | . . . . . . . . . . . . . . . . . . . . . Trap Hack Attempts . | . . . . . . . . . . . . . . . . . . . . . Triggered . | . . . . . . . . . . . . . . . . . . . . . Disarmed . | . . . . . . . . . . . . . . . . . . . . . Reprogrammed . | . . . . . . . . . . . . . . . . . . . . . Reused . | . . . . . . . . . . . . . . . . . . . . . Traps Extracted . | . . . . . . . . . . . . . . . . . . . . . Installed . | . . . . . . . . . . . . . . . . . . . . . Triggered . | . . . . . . . . . . . . . . . . . . . . . Machines | -11 -10 -10 -10 -9 -8 -7 -6 -6 -6 -6 -5 -5 -5 -5 -5 -4 -4 -4 -4 -3 ---------- Run | Yrd Mat Min Exi Min Mat Fac Fac Low Low Dat Pro Fac Upp Upp Zhi Pro Fac Was Fac Res Machines Disabled 8 | . . . . . 3 4 . . . . . 1 . . . . . . . . Max in Single Turn 2 | . . . . . 2 2 . . . . . . . . . . . . . . Garrison Access 6 | . . . . . 1 2 1 . . . . . . . . . 1 . . 1 Machines Repaired . | . . . . . . . . . . . . . . . . . . . . . Machines Dismantled . | . . . . . . . . . . . . . . . . . . . . . Machines Sabotaged . | . . . . . . . . . . . . . . . . . . . . . Overloaded Fab Kills . | . . . . . . . . . . . . . . . . . . . . . Hacking | -11 -10 -10 -10 -9 -8 -7 -6 -6 -6 -6 -5 -5 -5 -5 -5 -4 -4 -4 -4 -3 --------- Run | Yrd Mat Min Exi Min Mat Fac Fac Low Low Dat Pro Fac Upp Upp Zhi Pro Fac Was Fac Res Machines Accessed 102 | . 8 . 2 . 16 15 14 . 2 4 1 10 1 1 9 1 8 . 2 8 Terminals 52 | . 8 . . . 11 8 9 . 1 . 1 5 . . . 1 4 . 1 3 Fabricators 5 | . . . . . . 1 1 . . . . 2 . . . . . . . 1 Repair Stations 6 | . . . . . 2 1 2 . . . . . . . . . 1 . . . Recycling Units 4 | . . . . . . 2 . . . . . 1 . . . . 1 . . . Scanalyzers 8 | . . . . . 2 1 1 . . . . 1 . . . . 1 . . 2 Garrison Access 9 | . . . . . 1 2 1 . . . . 1 . . . . 1 . 1 2 Total Hacks 382 | . 35 . 10 . 84 39 35 . 2 31 1 29 1 1 48 8 36 . 3 19 Successful 312 | . 21 . 10 . 68 27 26 . 2 31 1 26 1 1 48 8 28 . 2 12 Failed 68 | . 14 . . . 15 12 8 . . . . 3 . . . . 8 . 1 7 Catastrophic 7 | . 2 . . . 1 3 . . . . . . . . . . . . 1 . Database Lockouts 2 | . . . . . 1 . 1 . . . . . . . . . . . . . Manual 131 | . 16 . 1 . 25 19 18 . 1 . . 16 . . . 1 21 . 3 10 Terminals 185 | . 35 . . . 45 27 21 . 1 . 1 20 . . . 8 19 . 2 6 Fabricators 12 | . . . . . . 3 2 . . . . 4 . . . . . . . 3 Repair Stations 18 | . . . . . 10 2 4 . . . . . . . . . 2 . . . Recycling Units 7 | . . . . . . 2 . . . . . 1 . . . . 4 . . . Scanalyzers 52 | . . . . . 28 3 5 . . . . 3 . . . . 8 . . 5 Garrison Access 16 | . . . . . 1 2 3 . . . . 1 . . . . 3 . 1 5 Terminal Hacks 169 | . 13 . 10 . 21 10 5 . 2 31 1 11 1 1 48 8 7 . . . Record 82 | . 6 . 9 . 8 2 . . 1 11 1 . . . 36 8 . . . . Part Schematic 17 | . . . . . . 1 . . . 11 . 1 . . 4 . . . . . Robot Schematic 6 | . . . . . . . . . . 6 . . . . . . . . . . Robot Analysis 4 | . . . . . . . . . . . . . . . 4 . . . . . Prototype ID Bank 9 | . . . . . . . . . . 3 . 1 . . 4 . 1 . . . Open Door 3 | . . . . . . . . . 1 . . . 1 1 . . . . . . Branch Access Points 5 | . 1 . . . 2 . 1 . . . . . . . . . 1 . . . Emergency Access Points 1 | . 1 . . . . . . . . . . . . . . . . . . . Terminal Index 5 | . 1 . . . 1 1 . . . . . 1 . . . . 1 . . . Fabricator Index 2 | . . . . . . . 1 . . . . . . . . . 1 . . . Repair Station Index 3 | . 1 . . . . 1 . . . . . . . . . . 1 . . . Recycling Unit Index 1 | . . . . . 1 . . . . . . . . . . . . . . . Scanalyzer Index 4 | . . . . . 2 1 . . . . . . . . . . 1 . . . Alert Level 7 | . 1 . . . 2 1 2 . . . . 1 . . . . . . . . Unreport Threat 1 | . . . . . . 1 . . . . . . . . . . . . . . Locate Traps 4 | . . . . . 1 1 . . . . . 2 . . . . . . . . Dispatch Records 2 | . . . . . . 1 . . . . . 1 . . . . . . . . Patrol Status 1 | . . . . . 1 . . . . . . . . . . . . . . . Recall Investigation 2 | . 1 . . . . . . . . . . 1 . . . . . . . . Hauler Manifests 1 | . . . . . 1 . . . . . . . . . . . . . . . Zone Layout 8 | . 1 . . . 2 . 1 . . . . 3 . . . . 1 . . . Proto ID Catalog 1 | . . . 1 . . . . . . . . . . . . . . . . . Fabricator Hacks 9 | . . . . . . 2 2 . . . . 4 . . . . . . . 1 Load Schematic 5 | . . . . . . 1 1 . . . . 2 . . . . . . . 1 Build 4 | . . . . . . 1 1 . . . . 2 . . . . . . . . Repair Station Hacks 15 | . . . . . 8 1 4 . . . . . . . . . 2 . . . Scan Component 8 | . . . . . 4 1 2 . . . . . . . . . 1 . . . Repair 7 | . . . . . 4 . 2 . . . . . . . . . 1 . . . Recycling Unit Hacks 4 | . . . . . . 2 . . . . . 1 . . . . 1 . . . Report Inventory 4 | . . . . . . 2 . . . . . 1 . . . . 1 . . . Scanalyzer 50 | . . . . . 27 3 4 . . . . 3 . . . . 8 . . 5 Insert Component 18 | . . . . . 12 1 1 . . . . 1 . . . . 2 . . 1 Analyze 18 | . . . . . 12 1 1 . . . . 1 . . . . 2 . . 1 Retrieve Study 14 | . . . . . 3 1 2 . . . . 1 . . . . 4 . . 3 Garrison Access Hacks 6 | . . . . . 1 2 1 . . . . . . . . . 1 . . 1 Seal Access 6 | . . . . . 1 2 1 . . . . . . . . . 1 . . 1 Unauthorized Hacks 59 | . 8 . . . 11 7 10 . . . . 7 . . . . 9 . 2 5 Terminals 54 | . 8 . . . 11 7 10 . . . . 6 . . . . 7 . 1 4 Assimilate 6 | . . . . . . . 1 . . . . 1 . . . . 3 . . 1 Botnet 44 | . 7 . . . 10 7 8 . . . . 4 . . . . 4 . 1 3 Operators 4 | . 1 . . . 1 . 1 . . . . 1 . . . . . . . . Fabricators . | . . . . . . . . . . . . . . . . . . . . . Repair Stations . | . . . . . . . . . . . . . . . . . . . . . Recycling Units 2 | . . . . . . . . . . . . . . . . . 2 . . . Reject 1 | . . . . . . . . . . . . . . . . . 1 . . . Mask 1 | . . . . . . . . . . . . . . . . . 1 . . . Scanalyzers . | . . . . . . . . . . . . . . . . . . . . . Garrison Access 3 | . . . . . . . . . . . . 1 . . . . . . 1 1 Reprogram 3 | . . . . . . . . . . . . 1 . . . . . . 1 1 Data Cores Recovered . | . . . . . . . . . . . . . . . . . . . . . Used . | . . . . . . . . . . . . . . . . . . . . . Hacking Detections 70 | . 8 . . . 14 12 11 . . . . 8 . . . 1 7 . 1 8 Full Trace Events 7 | . . . . . . 3 1 . . . . 2 . . . . . . . 1 Feedback Events . | . . . . . . . . . . . . . . . . . . . . . Feedback Blocked . | . . . . . . . . . . . . . . . . . . . . . Robot Schematics Acquired 6 | . . . . . . . . . . 6 . . . . . . . . . . Robots Built . | . . . . . . . . . . . . . . . . . . . . . Authchips . | . . . . . . . . . . . . . . . . . . . . . Time . | . . . . . . . . . . . . . . . . . . . . . Total Robot Build Rating . | . . . . . . . . . . . . . . . . . . . . . Part Schematics Acquired 33 | . . . . . 11 2 . . . 11 . 2 . . 4 . 2 . . 1 Parts Built 5 | . . . . . . 1 1 . . . . 3 . . . . . . . . Authchips . | . . . . . . . . . . . . . . . . . . . . . Time 229 | . . . . . . 58 36 . . . . 135 . . . . . . . . Total Part Build Rating 14 | . . . . . . 3 3 . . . . 8 . . . . . . . . Part Studies Acquired 14 | . . . . . 3 1 2 . . . . 1 . . . . 4 . . 3 Parts Repaired 7 | . . . . . 4 . 2 . . . . . . . . . 1 . . . Time 254 | . . . . . 156 . 54 . . . . . . . . . 44 . . . Parts Recycled . | . . . . . . . . . . . . . . . . . . . . . Recycled Matter . | . . . . . . . . . . . . . . . . . . . . . Retrieved Matter . | . . . . . . . . . . . . . . . . . . . . . Retrieved Components . | . . . . . . . . . . . . . . . . . . . . . Parts Scanalyzed 17 | . . . . . 11 1 1 . . . . 1 . . . . 2 . . 1 Part Schematics Acquired 16 | . . . . . 11 1 . . . . . 1 . . . . 2 . . 1 Parts Damaged . | . . . . . . . . . . . . . . . . . . . . . Bothacking | -11 -10 -10 -10 -9 -8 -7 -6 -6 -6 -6 -5 -5 -5 -5 -5 -4 -4 -4 -4 -3 ------------ Run | Yrd Mat Min Exi Min Mat Fac Fac Low Low Dat Pro Fac Upp Upp Zhi Pro Fac Was Fac Res Used RIF Installer . | . . . . . . . . . . . . . . . . . . . . . Robots Hacked 10 | . . . 4 1 . . . . . . . . . . 3 1 . 1 . . Non-combat 4 | . . . 3 . . . . . . . . . . . . 1 . . . . Combat 6 | . . . 1 1 . . . . . . . . . . 3 . . 1 . . Robot Hacks Applied 10 | . . . 4 1 . . . . . . . . . . 3 1 . 1 . . parse_system 10 | . . . 4 1 . . . . . . . . . . 3 1 . 1 . . Relay Couplers Released 3 | . . . . . . 3 . . . . . . . . . . . . . . Machine Destruction 3 | . . . . . . 3 . . . . . . . . . . . . . . Fabnet Peak Effective % . | . . . . . . . . . . . . . . . . . . . . . Robots Rewired . | . . . . . . . . . . . . . . . . . . . . . Allies Hacked 1 | . . . . . . . . . . . . 1 . . . . . . . . Hacks Repelled . | . . . . . . . . . . . . . . . . . . . . . Allies | -11 -10 -10 -10 -9 -8 -7 -6 -6 -6 -6 -5 -5 -5 -5 -5 -4 -4 -4 -4 -3 -------- Run | Yrd Mat Min Exi Min Mat Fac Fac Low Low Dat Pro Fac Upp Upp Zhi Pro Fac Was Fac Res Total Allies 29 | . . 2 . 1 . . 1 . . . . 3 . . . . 1 19 . 2 Largest Group 19 | . . 2 2 1 . . 1 . . . . 2 . . . . 1 19 8 9 Highest-Rated Group 684 | . . 41 41 31 . . 26 . . . . 82 . . . . 26 684 338 401 Highest-Rated Ally 56 | . . 31 31 31 . . 26 . . . . 41 . . . . 26 50 50 56 Total Orders 1 | . . . . . . . . . . . . . . . . . 1 . . . STAY 1 | . . . . . . . . . . . . . . . . . 1 . . . Ally Attacks 196 | . . 5 . 3 . . . . . . . 10 . . . . . 117 17 44 Total Damage 9551 | . . 102 . 66 . . . . . . . 297 . . . . . 7197 479 1410 Kills 35 | . . 1 . 1 . . . . . . . 3 . . . . . 15 7 8 Allies Corrupted 1 | . . . . . . . . . . . . 1 . . . . . . . . Allies Melted . | . . . . . . . . . . . . . . . . . . . . . Intel | -11 -10 -10 -10 -9 -8 -7 -6 -6 -6 -6 -5 -5 -5 -5 -5 -4 -4 -4 -4 -3 ------- Run | Yrd Mat Min Exi Min Mat Fac Fac Low Low Dat Pro Fac Upp Upp Zhi Pro Fac Was Fac Res Active Infowar (turns) 3270 | 94 346 . . . 22 2498 1 8 10 . 10 . . 2 . . 18 . . 261 Terrain 440 | 94 346 . . . . . . . . . . . . . . . . . . . Traps 2498 | . . . . . . 2498 . . . . . . . . . . . . . . Cloaking 29 | . . . . . . . 1 . . . . . . 2 . . 18 . . 8 Jamming 260 | . . . . . . . . . . . . . . . . . . . . 260 ECM 50 | . . . . . 22 . . 8 10 . 10 . . . . . . . . . Robot Analysis Total 4 | . . . . . . . . . . . . . . . 4 . . . . . Derelict Logs Recovered 3 | . . . . . . . . . 1 . . . . . . 2 . . . . Drone Launches . | . . . . . . . . . . . . . . . . . . . . . Drone Recoveries . | . . . . . . . . . . . . . . . . . . . . . Exploration | -11 -10 -10 -10 -9 -8 -7 -6 -6 -6 -6 -5 -5 -5 -5 -5 -4 -4 -4 -4 -3 ------------- Run | Yrd Mat Min Exi Min Mat Fac Fac Low Low Dat Pro Fac Upp Upp Zhi Pro Fac Was Fac Res Turns Passed 15448 | 248 1058 395 624 742 2737 3333 2117 185 199 24 135 1361 163 201 101 423 413 290 76 623 Spaces Moved 15545 | 170 707 197 440 476 1548 2075 2429 485 521 88 367 1473 433 491 264 841 923 510 124 983 Core 5 | 5 . . . . . . . . . . . . . . . . . . . . Treads . | . . . . . . . . . . . . . . . . . . . . . Legs . | . . . . . . . . . . . . . . . . . . . . . Wheels 5623 | 165 707 197 440 476 1548 2075 15 . . . . . . . . . . . . . Hover . | . . . . . . . . . . . . . . . . . . . . . Flight 9917 | . . . . . . . 2414 485 521 88 367 1473 433 491 264 841 923 510 124 983 Fastest Speed 26 | 50 80 140 140 140 115 100 27 27 27 27 27 27 27 27 27 27 26 26 27 26 Average Speed 59 | 79 128 146 140 140 117 105 27 27 27 27 27 27 27 27 27 27 26 26 27 26 Slowest Speed 215 | 80 140 215 140 140 145 125 112 27 27 27 27 27 27 27 27 27 27 27 27 29 Overloaded Moves . | . . . . . . . . . . . . . . . . . . . . . Propulsion Burnouts . | . . . . . . . . . . . . . . . . . . . . . Robots Hopped 76 | . . . . . . . 26 1 3 . 2 27 . . . . 1 . . 16 Potential Cave-ins . | . . . . . . . . . . . . . . . . . . . . . Cave-ins Triggered . | . . . . . . . . . . . . . . . . . . . . . Teleports 1 | . . . . . . . . . . . . . . . 1 . . . . . Exploration Rate (%) 57 | 9 98 40 81 68 96 52 51 69 82 74 62 28 62 57 62 83 15 97 3 25 Regions Visited 20 Branch Regions 11 Pre-discovered Areas 4 | . . . . . . . . . . 1 . . . . 3 . . . . . Known Exits Taken 8 | . 1 . . . . . 1 . . . . 1 1 1 1 1 . . 1 . Unknown Exits Taken 10 | 1 . 1 1 1 1 1 . 1 1 1 1 . . . . . . . . . Scrap Searched 11 | . . 1 . 1 . . . 1 2 . 2 . 1 1 . 2 . . . . Spaces Dug . | . . . . . . . . . . . . . . . . . . . . . Terrain Destroyed 86 | 2 2 . . . 8 32 . 34 . . . . . . . . . . 1 7 Melee . | . . . . . . . . . . . . . . . . . . . . . Projectile 24 | 2 2 . . . 8 11 . . . . . . . . . . . . 1 . AOE 62 | . . . . . . 21 . 34 . . . . . . . . . . . 7 Terrain Rammed . | . . . . . . . . . . . . . . . . . . . . . Walls Destroyed . | . . . . . . . . . . . . . . . . . . . . . Machines Disabled . | . . . . . . . . . . . . . . . . . . . . . Actions | -11 -10 -10 -10 -9 -8 -7 -6 -6 -6 -6 -5 -5 -5 -5 -5 -4 -4 -4 -4 -3 --------- Run | Yrd Mat Min Exi Min Mat Fac Fac Low Low Dat Pro Fac Upp Upp Zhi Pro Fac Was Fac Res Total 21029 | 237 805 273 445 528 2361 3096 3838 522 554 87 394 2398 466 529 291 1020 1070 667 160 1288 Wait 4488 | 1 40 45 . 10 609 859 1324 20 21 . 20 901 15 4 . 145 117 124 28 205 Move 15380 | 169 706 196 439 475 1547 2074 2379 482 514 87 363 1419 432 490 263 840 921 509 123 952 Hop 70 | . . . . . . . 23 1 3 . 1 26 . . . . 1 . . 15 Pick Up 264 | 19 19 9 1 11 56 33 24 3 1 . 2 12 5 6 8 6 8 11 1 29 Fast Attach . | . . . . . . . . . . . . . . . . . . . . . Attach 102 | 7 4 3 . 1 14 9 17 1 1 . 3 5 2 2 4 4 5 3 . 17 Detach 7 | . 2 . . . . 1 . . . . . . . . 1 2 . 1 . . Swap 90 | 3 6 . 1 5 11 11 12 1 . . . 7 . 3 7 3 4 6 1 9 Drop 174 | 5 9 4 . 8 40 23 30 2 . . 1 7 3 4 4 4 3 12 1 14 Fire 256 | 33 19 16 . 5 84 85 . 5 . . . . . . . . . 1 6 2 Melee 169 | . . . 4 13 . . 14 7 14 . 4 8 9 20 4 16 11 . . 45 Ram 1 | . . . . . . 1 . . . . . . . . . . . . . . Kick . | . . . . . . . . . . . . . . . . . . . . . Crush . | . . . . . . . . . . . . . . . . . . . . . Escape Stasis 28 | . . . . . . . 15 . . . . 13 . . . . . . . . Rewire . | . . . . . . . . . . . . . . . . . . . . . Trap . | . . . . . . . . . . . . . . . . . . . . . Miscellaneous . | . . . . . . . . . . . . . . . . . . . . . Route ------- -11/Scrapyard -10/Materials (discovered 5 exits: [*Mat x3] / *Min / [*Sub]) -10/Mines (discovered 3 exits: [*Mat x2] / *Exi) -10/Exiles (discovered 2 exits: [*Min x2]) -9/Mines -8/Materials (discovered 3 exits: *Fac x3) -7/Factory (discovered 3 exits: *Fac x2 / [*Low]) -6/Factory (discovered 3 exits: *Fac / *Low x2) -6/Lower Caves -6/Lower Caves (discovered 2 exits: *Fac / *Dat) -6/Data Miner -5/Proximity Caves -5/Factory (discovered 2 exits: Fac / *Upp) -5/Upper Caves -5/Upper Caves -5/Zhirov -4/Proximity Caves -4/Factory (discovered 6 exits: *Res / Upp x2 / Ext x2 / Arm) -4/Waste -4/Factory -3/Research History --------- Turn | Location | Event 2 | -11/Scrapyard | Met Revision 17 19 | -11/Scrapyard | Discovered new exit (range 16) 249 | -11/Scrapyard | Entered Materials 301 | -10/Materials | Build established: Mutant 387 | -10/Materials | Discovered new exit (range 8) 481 | -10/Materials | Discovered new exit (range 10) 584 | -10/Materials | Discovered new exit (range 12) 600 | -10/Materials | Identified exit to Mines 749 | -10/Materials | Derelicts attacked the area 844 | -10/Materials | Discovered new exit (range 9) 1051 | -10/Materials | Discovered new exit (range 16) 1307 | -10/Materials | Entered Mines 1501 | -10/Mines | Deemed a non-threat by the Exiles lab entrance 1501 | -10/Mines | Discovered new exit (range 5) 1522 | -10/Mines | Discovered new exit (range 5) 1625 | -10/Mines | Discovered new exit (range 14) 1702 | -10/Mines | Entered Exiles 1702 | -10/Exiles | Accompanied by 2 allies 1723 | -10/Exiles | Discovered new exit (range 14) 1732 | -10/Exiles | Led the pair of lost Derelicts to a safe place 1757 | -10/Exiles | Met 8R-AWN 1777 | -10/Exiles | Met EX-HEX 1830 | -10/Exiles | Met EX-BIN 1851 | -10/Exiles | Aligned with FarCom system 1853 | -10/Exiles | Given EX-Vault access code 1899 | -10/Exiles | Opened EX-Vault 1909 | -10/Exiles | Found Cloak of Protection 1938 | -10/Exiles | Warned to stay clear of 0b10 Research branches 1974 | -10/Exiles | Met EX-DEC 2028 | -10/Exiles | Visited The Gauntlet 2232 | -10/Exiles | Discovered new exit (range 10) 2326 | -10/Exiles | Left Exiles lab with Cloak of Protection 2326 | -10/Exiles | Entered Mines 2333 | -9/Mines | Met a Derelict bent on vengeance 2370 | -9/Mines | Assembled infested the area 2618 | -9/Mines | Discovered new exit (range 8) 2644 | -9/Mines | A weapon hastily lodged in a ceiling crevice suddenly fell to the ground 2893 | -9/Mines | Met a Derelict testing a Signal Generator 2989 | -9/Mines | Core integrity fell below 50% 3068 | -9/Mines | Entered Materials 3068 | -8/Materials | Evolved 4 slots: Propulsion x1, Utility x3 3723 | -8/Materials | Repaired Enh. Autogun 3834 | -8/Materials | Discovered new exit (range 16) 4092 | -8/Materials | Repaired Hrd. Light Armor Plating 4120 | -8/Materials | Repaired Wheel+ 4746 | -8/Materials | Central database locked down 4780 | -8/Materials | Build established: Scavenger-Mutant 5082 | -8/Materials | Build established: Mutant 5460 | -8/Materials | Repaired Hvy. Assault Cannon 5607 | -8/Materials | Discovered new exit (range 15) 5740 | -8/Materials | Discovered new exit (range 16) 5805 | -8/Materials | Entered Factory 5805 | -7/Factory | Evolved 2 slots: Propulsion x1, Utility x1 6107 | -7/Factory | Build established: Scavenger-Mutant 6193 | -7/Factory | Fabricated Imp. VTOL Module? 6879 | -7/Factory | Discovered new exit (range 8) 7826 | -7/Factory | Build established: Mutant 8502 | -7/Factory | Discovered new exit (range 7) 8508 | -7/Factory | Destroyed 8 combat bots 8733 | -7/Factory | Found Prototype Launcher 8734 | -7/Factory | Identified Rocket Array 8930 | -7/Factory | Discovered new exit (range 16) 9138 | -7/Factory | Entered another Factory area 9138 | -6/Factory | Evolved 2 slots: Utility x2 9447 | -6/Factory | Build established: Hacker-Sprinter 9895 | -6/Factory | Central database locked down 10155 | -6/Factory | Spotted B-75 Beast 10197 | -6/Factory | Repaired Mni. Grenade Launcher 10205 | -6/Factory | Fabricated System Shield? 10405 | -6/Factory | Repaired Imp. Propulsion Shielding? 10738 | -6/Factory | Identified exit to Lower Caves 11195 | -6/Factory | Discovered new exit (range 16) 11255 | -6/Factory | Entered Lower Caves 11367 | -6/Lower Caves | Spotted B-75 Beast 11418 | -6/Lower Caves | Discovered new exit (range 9) 11440 | -6/Lower Caves | Entered another Lower Caves area 11445 | -6/Lower Caves | Attracted the attention of an 0b10 checkpoint 11453 | -6/Lower Caves | Learned 12 Factory zone layouts 11457 | -6/Lower Caves | Discovered new exit (range 14) 11579 | -6/Lower Caves | Discovered new exit (range 9) 11582 | -6/Lower Caves | Ambushed by wild Derelicts 11639 | -6/Lower Caves | Entered Data Miner 11639 | -6/Data Miner | Discovered new exit (range 6) 11645 | -6/Data Miner | Met Data Miner 11652 | -6/Data Miner | Learned location of Section 7 (-2) 11652 | -6/Data Miner | Acquired the access code to Warlord's prototype stash 11657 | -6/Data Miner | Received God Mode back door access code from Data Miner 11663 | -6/Data Miner | Entered Proximity Caves 11743 | -5/Proximity Caves | Attracted the attention of an 0b10 checkpoint 11751 | -5/Proximity Caves | Spotter reported a threat 11755 | -5/Proximity Caves | Spotted B-75 Beast 11781 | -5/Proximity Caves | Discovered new exit (range 10) 11787 | -5/Proximity Caves | Lost 3 parts (3u) 11798 | -5/Proximity Caves | Entered Factory 11798 | -5/Factory | Evolved 2 slots: Utility x2 11799 | -5/Factory | Identified exit to Upper Caves 11799 | -5/Factory | Identified exit to Factory 11877 | -5/Factory | Found Launcher Loader 12273 | -5/Factory | Fabricated Propulsion Shielding (x2) 12280 | -5/Factory | Garrison activated, responded to threat 12357 | -5/Factory | Fabricated Enh. Fission Core? 13159 | -5/Factory | Entered Upper Caves 13260 | -5/Upper Caves | Attracted the attention of an 0b10 checkpoint 13303 | -5/Upper Caves | Discovered new exit (range 11) 13315 | -5/Upper Caves | Identified exit to Upper Caves 13322 | -5/Upper Caves | Entered another Upper Caves area 13350 | -5/Upper Caves | Encountered a Warlord checkpoint 13520 | -5/Upper Caves | Discovered new exit (range 15) 13523 | -5/Upper Caves | Identified exit to Zhirov 13523 | -5/Upper Caves | Entered Zhirov 13523 | -5/Zhirov | Discovered new exit (range 3) 13528 | -5/Zhirov | Met Zhirov 13533 | -5/Zhirov | Learned location of Quarantine (-2) 13533 | -5/Zhirov | Learned location of Testing (-3) 13533 | -5/Zhirov | Learned location of Command (-1) 13539 | -5/Zhirov | Zhirov requested help retrieving the SGEMP Prototype 13577 | -5/Zhirov | Found Alien Artifact 13578 | -5/Zhirov | Identified Transdimensional Reconstructor 13578 | -5/Zhirov | Warped through subspace 13590 | -5/Zhirov | Found Alien Artifact 13591 | -5/Zhirov | Identified Integrated Dissipator 13591 | -5/Zhirov | Installed Integrated Dissipator, increased core heat dissipation (+20) 13623 | -5/Zhirov | Identified exit to Proximity Caves 13624 | -5/Zhirov | Entered Proximity Caves 13682 | -4/Proximity Caves | Learned Research emergency access door positions 13807 | -4/Proximity Caves | Received a Behemoth hack from an annoying Tinkerer 13944 | -4/Proximity Caves | Learned Extension emergency access door positions 13944 | -4/Proximity Caves | Learned Extension security intel 13944 | -4/Proximity Caves | Learned Research terminal intel 13944 | -4/Proximity Caves | Learned Factory garrison access intel 13983 | -4/Proximity Caves | Attracted the attention of an 0b10 checkpoint 14047 | -4/Proximity Caves | Entered Factory 14047 | -4/Factory | Evolved 2 slots: Utility x2 14048 | -4/Factory | Identified exit to Upper Caves 14049 | -4/Factory | Loaded intel: 4 garrison access locations 14072 | -4/Factory | Discovered new exit (range 7) 14074 | -4/Factory | Identified exit to Research 14120 | -4/Factory | Repaired Enh. Fission Core 14217 | -4/Factory | Identified exit to Extension 14217 | -4/Factory | Identified exit to Armory 14332 | -4/Factory | Build established: Wizard-Sprinter 14370 | -4/Factory | Lost 3 parts (3u) 14460 | -4/Factory | Manually triggered Chute Trap 14460 | -4/Factory | Sucked down chute 14460 | -4/Factory | Entered Waste 14461 | -4/Waste | Met a frightened Derelict 14461 | -4/Waste | Identified exit to Factory 14477 | -4/Waste | Warlord forces began an assault 14512 | -4/Waste | Spotted C-40 Crusher 14513 | -4/Waste | Spotted C-40 Crusher 14522 | -4/Waste | Allies destroyed C-40 Crusher 14525 | -4/Waste | Spotted C-40 Crusher 14532 | -4/Waste | Spotted C-40 Crusher 14532 | -4/Waste | Allies destroyed C-40 Crusher 14539 | -4/Waste | Allies destroyed C-40 Crusher 14540 | -4/Waste | Spotted C-40 Crusher 14553 | -4/Waste | Allies destroyed C-40 Crusher 14555 | -4/Waste | Allies destroyed C-40 Crusher 14557 | -4/Waste | Spotted C-40 Crusher 14569 | -4/Waste | Allies destroyed C-40 Crusher 14586 | -4/Waste | Lost 11 allies 14750 | -4/Waste | Entered Factory 14750 | -4/Factory | Accompanied by 8 allies 14772 | -4/Factory | Discovered exit to Research (range 15) 14782 | -4/Factory | Garrison activated, responded to threat 14826 | -4/Factory | Entered Research 14826 | -3/Research | Accompanied by 7 allies 14826 | -3/Research | Evolved 2 slots: Utility x2 14828 | -3/Research | Loaded intel: 24 terminal locations 14852 | -3/Research | Garrison activated, responded to threat 14874 | -3/Research | Incoming investigation squad redirected 15177 | -3/Research | Lost 6 allies 15246 | -3/Research | Found Prototype Processor 15247 | -3/Research | Identified Exp. Targeting Computer 15373 | -3/Research | Lost 5 parts (1n4u) 15449 | -3/Research | Self-destructed Last Messages --------------- 15432_ Slug penetrates Wall. 15432_ Cld. Impulse Thruster destroyed. 15432_ Slug penetrates Wall. 15434_ Nanoactuators destroyed. 15434_ P-80 Master destroyed. 15435_ Slug penetrates Wall. 15436_ Penetrated by Slug. 15436_ Slug penetrates Wall. 15436_ Y-72 Warden Railgun severed. 15439_ Slug penetrates Wall. 15439_ G-67 Veteran Flexi-carbon Leg severed. 15442_ Slug penetrates Wall. 15442_ Penetrated by Slug. 15442_ Slug penetrates Wall. 15444_ Wall collapses. 15445_ Penetrated by Slug. 15445_ Imp. VTOL Module destroyed. 15445_ Slug penetrates G-67 Veteran. 15446_ Particle Reactor destroyed. 15447_ Imp. VTOL Module destroyed. Map ----- +----------------------------------------------------+ | """""#??????????????# # !#?????????????????? | | ######??????????#???# # #?????????????????? | | ???????????????## ### # #?????????????????? | | ???????????????# + #?????????????????? | | ???????????"" + # #?????????????????? | | ???????????"" # ########?????????????????? | | ???????????"???# ### ##????????????????????????? | | ???????????????# ??# #?????????????????????????? | | ???????????????# ???# #?????????????????????????? | | ???????????????# ????# #?????????????????????????? | | ???????????????# ????# #?????????????????????????? | | ?+?????????????#?????# #?????????????????????????? | | ?????????????????????# #?????????????????????????? | | ?????????????????????# #?????????????????????????? | | ?????????+?????#???###+####??????????????????????? | | ???????????????# ??# #??????????????????????? | | ???????????????# ?# #??????????????????????? | | ?????????????g?? # #??????????????????????? | | ?????????????????? / #??????????????????????? | | ???????????????????# = #??????????????????????? | | ??????????????g????# !=[ #??????????????????????? | | ???????????????????####+###??????????????????????? | | ?????????# # ####%########?????????????????? | | ?????????# / h u h?????????? | | ?????????# #######/##;#####?????????????????? | | ?????????+??????????# =Y!@k#?????????????????????? | | ????????????????????# [=g= #?????????????????????? | | ????????????????????# ==g #?????????????????????? | | ????????????????????# #?????????????????????? | | ????????????????????# #?????????????????????? | | ????????????????????# #?????????????????????? | | ???????+????????????########?????????????????????? | | ?????????????????????????????????????????????????? | | ?????????????????????????????????????????????????? | | ?????????????????????????????????????????????????? | | ?????????????????????????????????????????????????? | | ?????????????????????????????????????????????????? | | ?????????????????????????????????????????????????? | | ?????????????????????????????????????????????????? | | ?????????????????????????????????????????????????? | | ?????????????????????????????????????????????????? | | ?????????????????????????????????????????????????? | | ?????????????????????????????????????????????????? | | ?????????????????????????????????????????????????? | | ?????????????????????????????????????????????????? | | ?????????????????????????????????????????????????? | | ?????????????????????????????????????????????????? | | ?????????????????????????????????????????????????? | | ?????????????????????????????????????????????????? | | ?????????????????????????????????????????????????? | +----------------------------------------------------+ Best States ------------- Heat Dissipation 66 Energy Generation 26 Energy Capacity 350 Matter Stores 300 Matter Capacity 300 Sight Range 16 Terrain Scan Range 16 Terrain Scan Density 10 ECM Strength 2 Jamming Range 16 Cloak Strength 5 Additional Mass Support 9 Corruption Containment 12 Corruption Block 20 Armor Coverage 225 Resistance: KI 50 Resistance: TH 20 Resistance: EX 20 Resistance: EM 20 Resistance: I 20 Resistance: S 20 Resistance: P 20 Propulsion Shielding 90 Melee Speed Boost 30 Phase Shifting 5 Evasion (%) 77 Targeting Accuracy 22 Melee Accuracy 20 Target Analysis 11 Armor Integrity Analysis 40 Offensive Hacking 50 Defensive Hacking 20 Item Schematics ----------------- Hvy. Mace | -8/Materials | Scanalyzed Propulsion Shielding | -8/Materials | Scanalyzed System Shield | -8/Materials | Scanalyzed Sml. Storage Unit | -8/Materials | Scanalyzed Lgt. Nuclear Core | -8/Materials | Scanalyzed Hvy. Assault Cannon | -8/Materials | Scanalyzed ECM Suite | -8/Materials | Scanalyzed Imp. Light Armor Plating | -8/Materials | Scanalyzed Wheel | -8/Materials | Scanalyzed Hvy. Missile Launcher | -8/Materials | Scanalyzed Ion Engine | -8/Materials | Scanalyzed Imp. VTOL Module | -7/Factory | Scanalyzed Hacking Suite | -7/Factory | Hacked Combat Drone Bay | -6/Data Miner | Free Lgt. Regenerative Plating | -6/Data Miner | Free Cld. Gravmag System | -6/Data Miner | Free Imp. Matter Compressor | -6/Data Miner | Free Cld. Plasma Rifle | -6/Data Miner | Free Imp. Force Field | -6/Data Miner | Free Impulse Thruster | -6/Data Miner | Free Adv. Datajack | -6/Data Miner | Free Nuclear Pulse Array | -6/Data Miner | Free Micro-nuke Launcher | -6/Data Miner | Free Hvy. Gauss Cannon | -6/Data Miner | Free Enh. Fission Core | -5/Factory | Scanalyzed Imp. System Shield | -5/Factory | Hacked Assault Drone Bay | -5/Zhirov | Free Exp. Heat Sink | -5/Zhirov | Free Exp. Optical Array | -5/Zhirov | Free Imp. Arc Thrower | -5/Zhirov | Free Lgt. Antimatter Reactor | -4/Factory | Scanalyzed Antimatter Reactor | -4/Factory | Scanalyzed Cld. Impulse Thruster | -3/Research | Scanalyzed Robot Schematics ------------------ A-15 Conveyor | -6/Data Miner | Free B-60 Warrior | -6/Data Miner | Free L-41 Fighter | -6/Data Miner | Free C-35 Carver | -6/Data Miner | Free E-15 Imp | -6/Data Miner | Free H-66 Slayer | -6/Data Miner | Free Fabricated ------------ Imp. VTOL Module | x1 | -7/Factory System Shield | x1 | -6/Factory Propulsion Shielding | x2 | -5/Factory Enh. Fission Core | x1 | -5/Factory Repaired ---------- Enh. Autogun | 35% | -8/Materials Hrd. Light Armor Plating | 39% | -8/Materials Wheel | 22% | -8/Materials Hvy. Assault Cannon | 40% | -8/Materials Mni. Grenade Launcher | 54% | -6/Factory Imp. Propulsion Shielding | 67% | -6/Factory Enh. Fission Core | 16% | -4/Factory Studied --------- Wheel | -8/Materials | Hacked Lgt. Nuclear Core | -8/Materials | Hacked Hvy. Mace | -8/Materials | Hacked Cesium-ion Thruster | -7/Factory | Hacked Power Sword | -6/Factory | Hacked Xenon Bombardment Thruster | -6/Factory | Hacked Katana | -5/Factory | Hacked Imp. Remote Datajack | -4/Factory | Hacked Lgt. Antimatter Reactor | -4/Factory | Hacked Antimatter Reactor | -4/Factory | Hacked Adv. Datajack | -4/Factory | Hacked Lgt. Quantum Reactor | -3/Research | Hacked Impulse Thruster | -3/Research | Hacked Imp. Concussive RPG | -3/Research | Hacked Alien Tech Used ----------------- Transdimensional Reconstructor Integrated Dissipator Achievements -------------- Armchair Analyst Deadly Force Plot Armor Recruitment Drive Subspace Traveler The Science Guy Wheee! Challenges ------------ None Game ------ Seed LobotomyColdBiocell Manual? 0 Play Time 04:09:03 Cumulative 80.5 hours Start 2026.02.01 @ 13:08:44 End 2026.02.01 @ 18:42:29 Sessions 1 Manual Loads 0 Difficulty Adventurer Special Mode None Game No. 114 Rogue 83 Adventurer 30 Explorer 1 Win Type - Total 0 Types 0/0/0/0/0/0/0/0/0/0 Lore% 20 Gallery% 43 Achievement% 32 Wizard Run 0 Options --------- Layout 1 ASCII 0 Keyboard 0 Movement Numpad Keybinds 0 Fullscreen 1 Font 24/Smallcaps Map View 50x35 Zoom Use 0% Tactical HUD 1 Map Filters NONE Filters NONE Steam 1 RUN: 736b8688-38a8-44f6-8ee3-251ad7ffc797